bitfinex-derivatives/quotes_ETHF0:USTF0_20240901
["timestamp","ask_amount","ask_price","bid_price","bid_amount"]
[1725211987717,2.81,2457.5,2457.2,0.36669496]
[1725211988228,2.81,2457.5,2457.2,0.77366496]
[1725211988617,2.81,2457.5,2457.2,0.36669496]
[1725211988818,2.81,2457.7,2457.2,4.43629496]
[1725211989130,3.2169,2457.7,2457.2,0.77366496]
[1725211990024,3.2169,2457.7,2457.3,0.40697]
[1725211990217,2.81,2457.7,2457.3,0.40697]
[1725211990425,0.40693,2457.6,2457.2,0.36669496]
[1725211991218,2.81,2457.7,2457.2,3.57449496]
[1725211991418,2.81,2457.7,2457.4,0.40694]
[1725211991641,2.81,2457.7,2457.3,0.40696]
[1725211992122,0.40692,2457.6,2457.2,3.57449496]
[1725211992328,0.40692,2457.6,2457.2,0.36669496]
[1725211992523,2.81,2457.7,2457.3,0.40696]
[1725211992729,2.81,2457.7,2457.3,4.0696]
[1725211992924,2.81,2457.7,2457.4,4.47574]
[1725211993121,2.81,2457.7,2457.4,0.40694]
[1725211993431,2.81,2457.7,2457.5,4.47573]
[1725211993729,2.81,2457.7,2457.6,0.3624]
[1725211993928,2.81,2457.7,2457.6,4.7872]
[1725211994927,0.00609496,2458.1,2457.7,0.40688]
[1725211995128,2.81609496,2458.1,2457.6,0.7184]
[1725211995421,2.81609496,2458.1,2457.9,0.40686]
[1725211996023,2.81609496,2458.1,2457.6,0.7184]
[1725211996024,2.81609496,2458.1,2458.0,0.40685]
[1725211996326,0.00609496,2458.1,2458.0,0.40685]
[1725211996632,0.00609496,2458.1,2458.0,4.47485]
[1725211998534,0.00609496,2458.1,2458.0,4.068]
[1725211998732,2.81609496,2458.1,2457.9,0.3568]
[1725211998931,3.22293496,2458.1,2457.9,0.3568]
[1725211999126,2.81609496,2458.1,2457.9,0.3568]
[1725211999326,0.40685,2458.0,2457.9,0.3568]
[1725211999830,0.40687,2457.9,2457.8,3.2078]
[1725212000030,3.21687,2457.9,2457.8,3.2078]
[1725212000638,7.28567,2457.9,2457.8,3.2078]
[1725212001532,3.21687,2457.9,2457.8,3.2078]
[1725212001836,7.28567,2457.9,2457.8,3.2078]
[1725212002037,0.40689,2457.8,2457.7,3.2078]
[1725212003036,2.81,2457.9,2457.7,3.2078]
[1725212003037,3.21687,2457.9,2457.7,3.2078]
[1725212004323,2.81,2457.9,2457.7,3.2078]
[1725212004924,3.22294496,2458.1,2457.7,3.2078]
[1725212005128,2.81609496,2458.1,2457.7,3.61469]
[1725212005330,3.22293496,2458.1,2457.7,3.61469]
[1725212005739,2.81609496,2458.1,2457.7,3.61469]
[1725212006243,2.81609496,2458.1,2457.7,3.2078]
[1725212006426,0.00609496,2458.1,2457.8,4.0688]
[1725212006627,0.00609496,2458.1,2457.9,0.3833]
[1725212006828,0.00609496,2458.1,2458.0,0.3567]
[1725212007038,0.00609496,2458.1,2458.0,4.4247]
[1725212007826,0.40685,2458.0,2457.7,3.2078]
[1725212008034,0.40687,2457.9,2457.7,3.2078]
[1725212008237,3.21687,2457.9,2457.7,3.2078]
[1725212008844,2.81,2457.9,2457.7,3.2078]
[1725212010833,0.00609496,2458.1,2457.7,3.2078]
[1725212011036,2.81609496,2458.1,2457.9,0.40686]
[1725212011231,0.00609496,2458.1,2458.0,3.61465]
[1725212011634,0.00609496,2458.1,2458.0,13.68265]
[1725212012135,0.00609496,2458.1,2458.0,13.2758]
[1725212012345,0.00609496,2458.1,2458.0,7.2758]
[1725212014151,0.00609496,2458.1,2458.0,4.068]
[1725212014936,2.81609496,2458.1,2457.9,3.2078]
[1725212015135,3.22293496,2458.1,2457.9,3.2078]
[1725212015544,2.81609496,2458.1,2457.9,3.2078]
[1725212016342,0.00609496,2458.1,2458.0,4.068]
[1725212016749,0.00609496,2458.1,2458.0,4.4369]
[1725212017738,0.41294496,2458.1,2457.9,3.2078]
[1725212018055,0.41293496,2458.1,2457.9,3.2078]
[1725212018438,0.40685,2458.0,2457.9,3.2078]
[1725212018645,0.41293496,2458.1,2457.9,3.2078]
[1725212019849,0.00609496,2458.1,2457.9,3.2078]
[1725212020346,0.40685,2458.0,2457.9,3.2078]
[1725212020645,0.00609496,2458.1,2457.9,3.2078]
[1725212020646,3.22294496,2458.1,2457.9,3.2078]
[1725212020843,0.40685,2458.0,2457.9,3.2078]
[1725212021238,3.22293496,2458.1,2457.9,3.2078]
[1725212021638,0.40685,2458.0,2457.9,3.2078]
[1725212022038,0.79145,2458.0,2457.9,3.2078]
[1725212022345,4.86025,2458.0,2457.9,3.2078]
[1725212022653,0.79145,2458.0,2457.9,3.2078]
[1725212022851,0.3846,2458.0,2457.9,3.2078]
[1725212025343,0.00609496,2458.1,2457.9,7.2766]
[1725212025640,0.00609496,2458.1,2458.0,4.4285]
[1725212025847,0.40666,2459.2,2458.7,0.40673]
[1725212026051,0.76354,2459.3,2458.8,0.76731]
[1725212026352,0.3569,2459.3,2459.0,0.40667]
[1725212026557,0.3569,2459.3,2458.9,3.61449]
[1725212026859,0.36299496,2459.3,2458.9,3.62058496]
[1725212027242,0.36299496,2459.3,2459.1,0.40666]
[1725212027746,0.00609496,2459.3,2459.1,0.40666]
[1725212027948,0.00609496,2459.3,2459.2,4.47305]
[1725212028155,6.0178,2460.2,2459.2,26.37581332]
[1725212028358,6.3773,2460.2,2459.7,0.40656]
[1725212028657,6.3773,2460.2,2459.8,0.3882]
[1725212028854,6.7838,2460.2,2459.8,0.3882]
[1725212029164,0.40656,2459.8,2459.3,0.3536]
[1725212029455,0.40656,2459.8,2459.3,1.119]
[1725212030057,0.40658,2459.7,2459.3,1.119]
[1725212030554,0.40656,2459.8,2459.3,1.52563]
[1725212030748,0.3571,2460.1,2459.3,8.3924]
[1725212030955,3.57339496,2460.2,2459.6,6.0178]
[1725212031157,3.97989496,2460.2,2459.6,3.61438]
[1725212031448,0.4065,2460.1,2459.6,3.2078]
[1725212031856,0.4065,2460.1,2459.6,3.61439]
[1725212032762,3.97988496,2460.2,2459.6,3.61439]
[1725212033558,3.97988496,2460.2,2459.7,0.40657]
[1725212034058,3.97988496,2460.2,2459.8,0.3601]
[1725212034456,3.57339496,2460.2,2459.8,0.76665]
[1725212034869,0.36559496,2460.2,2459.8,0.76665]
[1725212038666,0.77208496,2460.2,2459.8,0.3601]
[1725212039469,0.77208496,2460.2,2459.8,0.76665]
[1725212040664,0.36559496,2460.2,2459.8,0.76665]
[1725212040867,0.00609496,2460.2,2460.1,0.4065]
[1725212041066,3.2078,2460.9,2460.1,2.81]
[1725212041067,0.3727,2460.9,2460.1,2.81]
[1725212041270,3.21631,2461.3,2460.9,0.40637]
[1725212041271,2.81,2461.3,2460.9,0.40637]
[1725212041464,3.58898,2461.5,2461.0,0.40634]
[1725212041769,0.40629,2461.4,2460.9,0.40636]
[1725212041961,0.41238496,2461.4,2460.9,0.41245496]
[1725212042163,0.00609496,2461.4,2460.9,0.00609496]
[1725212042371,0.00609496,2461.4,2461.1,0.40632]
[1725212042865,0.00609496,2461.4,2461.1,7.271]
[1725212043168,0.00609496,2461.4,2461.2,4.84521]
[1725212043557,0.00609496,2461.4,2461.3,4.0632]
[1725212043961,0.00609496,2461.4,2461.1,0.40633]
[1725212044371,0.00609496,2461.4,2461.1,4.46953]
[1725212044562,0.00609496,2461.4,2461.1,4.0632]
[1725212044761,0.40631,2461.3,2460.9,0.00609496]
[1725212045075,0.3869,2461.3,2460.9,0.41245496]
[1725212045468,0.3869,2461.3,2460.9,0.00609496]
[1725212045859,0.40632,2461.2,2460.9,0.00609496]
[1725212046065,0.79321,2461.3,2460.9,0.00609496]
[1725212046276,0.3869,2461.3,2460.9,0.00609496]
[1725212046476,0.40635,2461.1,2460.9,0.00609496]
[1725212046672,0.40635,2461.0,2460.9,0.00609496]
[1725212047073,0.40642,2460.7,2460.4,3.2078]
[1725212047575,0.40642,2460.6,2460.4,3.2078]
[1725212048661,0.40644,2460.5,2460.4,3.2078]
[1725212049175,0.40645,2460.4,2460.3,0.00609496]
[1725212049470,1.15975,2460.4,2460.3,0.00609496]
[1725212049673,5.22455,2460.4,2460.3,0.00609496]
[1725212051179,4.83245,2460.4,2460.3,0.00609496]
[1725212051478,0.3612,2460.4,2460.3,0.00609496]
[1725212051774,3.2078,2460.8,2460.3,4.47735496]
[1725212051979,0.3685,2460.7,2460.3,0.41255496]
[1725212052474,0.77492,2460.7,2460.3,0.00609496]
[1725212052682,0.40645,2460.4,2460.3,0.00609496]
[1725212053280,4.47125,2460.4,2460.3,0.00609496]
[1725212053664,5.48739,2460.4,2460.3,0.00609496]
[1725212055279,0.40655,2459.8,2459.7,4.19]
[1725212055467,2.81,2460.0,2459.3,9.29361938]
[1725212055773,0.40661,2459.5,2459.3,9.29361938]
[1725212057478,0.40664,2459.3,2459.2,0.00609496]
[1725212058072,10.49084,2459.3,2459.2,0.00609496]
[1725212058371,7.28304,2459.3,2459.2,0.00609496]
[1725212058572,7.66754,2459.3,2459.2,0.00609496]
[1725212059780,3.60114,2459.3,2459.2,0.00609496]
[1725212060276,0.79114,2459.3,2459.2,0.00609496]
[1725212060777,0.3845,2459.3,2459.2,0.00609496]
[1725212060970,0.40661,2459.5,2459.2,0.00609496]
[1725212061369,0.00609496,2459.6,2459.2,0.00609496]
[1725212061674,0.40663,2459.4,2459.2,0.00609496]
[1725212061870,0.00609496,2459.6,2459.2,0.00609496]
[1725212061871,0.40661,2459.5,2459.2,0.00609496]
[1725212062267,0.40662,2459.4,2459.2,0.00609496]
[1725212064073,0.40661,2459.5,2459.2,0.00609496]
[1725212064270,0.00609496,2459.6,2459.2,0.00609496]
[1725212064474,0.00609496,2459.6,2459.3,0.40663]
[1725212064869,0.00609496,2459.6,2459.3,4.47223]
[1725212066980,0.40664,2459.3,2459.2,0.00609496]
[1725212067185,0.40662,2459.4,2459.2,0.00609496]
[1725212067383,0.40663,2459.4,2459.2,0.00609496]
[1725212067585,0.40663,2459.4,2459.2,4.07249496]
[1725212067877,0.40664,2459.3,2459.2,0.00609496]
[1725212068281,0.40663,2459.4,2459.2,0.00609496]
[1725212068584,0.40662,2459.4,2459.2,0.00609496]
[1725212069079,0.76891,2459.5,2459.2,0.00609496]
[1725212069378,0.40663,2459.4,2459.2,0.00609496]
[1725212069680,0.40664,2459.3,2459.2,0.00609496]
[1725212070582,10.49084,2459.3,2459.2,0.00609496]
[1725212070772,6.42444,2459.3,2459.2,0.00609496]
[1725212071283,3.61444,2459.3,2459.2,0.00609496]
[1725212071468,11.50744,2459.3,2459.2,0.00609496]
[1725212071872,10.49084,2459.3,2459.2,0.00609496]
[1725212072075,0.40664,2459.3,2459.2,0.00609496]
[1725212072485,0.00609496,2459.6,2459.3,0.40663]
[1725212072678,0.00609496,2459.6,2459.2,4.07249496]
[1725212072982,0.00609496,2459.6,2459.5,0.4066]
[1725212073282,0.00609496,2459.6,2459.5,4.4722]
[1725212074671,0.00609496,2459.6,2459.5,4.8794]
[1725212074873,0.00609496,2459.6,2459.5,4.4722]
[1725212075074,0.00609496,2459.6,2459.5,4.8794]
[1725212075280,0.00609496,2459.6,2459.5,4.4722]
[1725212075681,0.00609496,2459.6,2459.5,4.8794]
[1725212076076,0.00609496,2459.6,2459.5,4.4722]
[1725212076278,3.2078,2460.8,2459.5,12.8756]
[1725212076586,0.40648,2460.3,2459.8,3.61434]
[1725212076780,2.81,2460.2,2459.8,3.2078]
[1725212076970,2.81,2460.0,2459.3,3.615]
[1725212077172,0.40658,2459.7,2459.3,3.2078]
[1725212077575,0.40658,2459.7,2459.3,3.61443]
[1725212077976,0.40656,2459.8,2459.3,3.61443]
[1725212078875,0.00609496,2459.9,2459.3,3.2078]
[1725212079286,0.40658,2459.7,2459.3,3.61443]
[1725212079482,0.40658,2459.7,2459.4,0.3918]
[1725212080086,0.40659,2459.6,2459.4,0.3918]
[1725212083190,3.82639,2459.8,2459.3,3.2078]
[1725212083390,0.374,2459.5,2459.3,3.2078]
[1725212084089,0.40662,2459.4,2459.3,3.2078]
[1725212084589,0.40664,2459.3,2459.2,0.00609496]
[1725212084780,3.21664,2459.3,2459.2,0.00609496]
[1725212084981,7.28304,2459.3,2459.2,0.00609496]
[1725212085288,3.21664,2459.3,2459.2,0.00609496]
[1725212085486,0.40664,2459.3,2459.2,0.00609496]
[1725212086281,4.47304,2459.3,2459.2,0.00609496]
[1725212086987,0.40664,2459.3,2459.2,0.00609496]
[1725212087579,0.40662,2459.4,2459.2,0.00609496]
[1725212087786,0.40664,2459.3,2459.2,0.00609496]
[1725212088183,4.47304,2459.3,2459.2,0.00609496]
[1725212088585,0.40663,2459.4,2459.2,0.00609496]
[1725212088792,0.78062,2459.5,2459.2,0.00609496]
[1725212089095,0.40662,2459.4,2459.2,0.00609496]
[1725212089609,0.40664,2459.3,2459.2,0.00609496]
[1725212090203,0.40663,2459.4,2459.2,0.00609496]
[1725212090404,0.38643,2459.4,2459.2,0.00609496]
[1725212090705,0.40664,2459.3,2459.2,0.00609496]
[1725212091100,0.40663,2459.4,2459.2,0.00609496]
[1725212091518,0.40664,2459.3,2459.2,0.00609496]
[1725212091905,0.40663,2459.4,2459.2,0.00609496]
[1725212092410,0.40664,2459.3,2459.2,0.00609496]
[1725212092705,0.374,2459.5,2459.2,0.00609496]
[1725212093200,0.40664,2459.3,2459.2,0.00609496]
[1725212095210,4.47304,2459.3,2459.2,0.00609496]
[1725212095504,0.40664,2459.3,2459.2,0.00609496]
[1725212098613,0.374,2459.5,2459.2,0.00609496]
[1725212098808,0.4066,2459.6,2459.2,0.80123496]
[1725212098998,2.81,2459.7,2459.2,0.80123496]
[1725212099203,0.40659,2459.6,2459.2,0.80123496]
[1725212099607,0.4066,2459.5,2459.3,0.3834]
[1725212099811,2.81,2459.7,2459.3,0.79003]
[1725212099812,0.40659,2459.7,2459.3,0.79003]
[1725212100112,3.9549,2459.8,2459.3,1.18063]
[1725212100314,3.5634,2459.8,2459.3,3.9818]
[1725212100516,0.41263496,2459.9,2459.6,3.2078]
[1725212100517,0.00609496,2459.9,2459.6,3.2078]
[1725212100713,0.00609496,2459.9,2459.7,0.3726]
[1725212100915,0.41264496,2459.9,2459.7,0.3726]
[1725212101623,0.00609496,2459.9,2459.7,0.3726]
[1725212102115,0.41263496,2459.9,2459.7,0.3726]
[1725212102314,0.40655,2459.8,2459.7,0.3726]
[1725212102517,0.00609496,2459.9,2459.3,0.774]
[1725212102709,0.40659,2459.6,2459.3,1.1397]
[1725212102908,0.40658,2459.7,2459.3,1.1397]
[1725212103316,0.40659,2459.6,2459.3,1.1397]
[1725212103512,2.81,2459.7,2459.3,0.3657]
[1725212103715,0.40662,2459.4,2459.3,0.3657]
[1725212105522,0.40661,2459.5,2459.3,0.3657]
[1725212106521,3.59469496,2459.9,2459.3,4.4321]
[1725212106522,0.40656,2459.8,2459.3,4.4321]
[1725212106716,0.00609496,2459.9,2459.6,0.40658]
[1725212106919,0.00609496,2459.9,2459.7,0.40657]
[1725212107216,0.00609496,2459.9,2459.8,0.7702]
[1725212108018,0.41263496,2459.9,2459.5,0.40659]
[1725212108219,0.00609496,2459.9,2459.4,3.5919]
[1725212108424,0.40658,2459.7,2459.4,0.3841]
[1725212108719,0.40659,2459.6,2459.4,0.3841]
[1725212108922,0.40657,2459.7,2459.4,0.3841]
[1725212110522,0.00609496,2459.9,2459.6,0.40658]
[1725212110823,0.00609496,2459.9,2459.7,0.381]
[1725212111320,0.00609496,2459.9,2459.7,0.78757]
[1725212111520,0.00609496,2459.9,2459.8,0.40655]
[1725212111714,0.00609496,2459.9,2459.8,7.67995]
[1725212112917,0.77824,2460.5,2460.1,0.4065]
[1725212113223,0.77824,2460.5,2460.2,0.7406]
[1725212113422,6.3994,2460.7,2460.2,0.7406]
[1725212113623,6.42421,2460.7,2460.3,0.40647]
[1725212113917,0.00609496,2460.7,2460.6,0.40641]
[1725212114118,0.00609496,2460.7,2460.6,3.61421]
[1725212114323,0.3815,2461.2,2460.9,0.40637]
[1725212114523,0.3815,2461.2,2460.8,0.40638]
[1725212114720,0.40636,2461.0,2460.7,0.3759]
[1725212114920,0.40637,2460.9,2460.7,0.3759]
[1725212115112,2.81,2461.1,2460.7,0.3759]
[1725212115113,0.40639,2460.8,2460.7,0.3759]
[1725212115624,0.40639,2460.8,2460.7,4.4399]
[1725212115823,0.40642,2460.6,2460.5,0.00609496]
[1725212116020,3.1751,2460.9,2460.5,0.00609496]
[1725212116216,0.4064,2460.8,2460.5,0.00609496]
[1725212116423,0.40639,2460.8,2460.5,0.00609496]
[1725212122229,3.1751,2460.9,2460.5,0.00609496]
[1725212122527,0.40642,2460.6,2460.5,0.00609496]
[1725212123030,4.47042,2460.6,2460.5,0.00609496]
[1725212124232,11.48648,2460.6,2460.5,0.00609496]
[1725212124527,13.28042,2460.6,2460.5,0.00609496]
[1725212125034,0.4065,2460.1,2459.9,7.3978]
[1725212125228,0.40649,2460.2,2459.9,3.2078]
[1725212125729,0.40648,2460.3,2459.9,3.2078]
[1725212126032,0.40648,2460.3,2459.9,3.21389496]
[1725212126429,0.40648,2460.3,2459.9,3.62042496]
[1725212126725,0.40649,2460.2,2459.9,3.21389496]
[1725212126926,0.3747,2460.4,2459.9,3.21389496]
[1725212127734,0.40649,2460.2,2459.9,3.21389496]
[1725212127933,0.40648,2460.3,2459.9,3.62042496]
[1725212128132,0.40649,2460.2,2459.9,3.21389496]
[1725212128637,0.40649,2460.2,2459.1,0.40666]
[1725212128638,0.40661,2459.5,2459.1,0.40666]
[1725212128936,0.40661,2459.5,2459.1,9.34334692]
[1725212129239,0.40661,2459.5,2459.2,0.3611]
[1725212129738,0.3764,2459.8,2459.1,0.37099496]
[1725212129739,0.40665,2459.2,2459.1,0.37099496]
[1725212129925,0.40665,2459.2,2459.1,0.00609496]
[1725212131836,0.79655,2459.2,2459.1,0.00609496]
[1725212134041,1.3844,2459.3,2459.1,0.00609496]
[1725212134042,0.77444,2459.3,2459.1,0.00609496]
[1725212134227,0.40662,2459.4,2459.1,0.00609496]
[1725212134436,2.81609496,2459.6,2459.1,1.14995496]
[1725212134632,0.00609496,2459.6,2459.1,0.74329496]
[1725212134939,0.40661,2459.5,2459.1,0.74329496]
[1725212135243,0.41268496,2459.6,2459.1,1.14995496]
[1725212135633,0.40661,2459.5,2459.1,0.74329496]
[1725212136135,2.81609496,2459.6,2459.1,0.74329496]
[1725212136343,0.40665,2459.2,2459.1,0.00609496]
[1725212136539,3.21665,2459.2,2459.1,0.00609496]
[1725212138338,0.40667,2459.1,2459.0,0.0202]
[1725212138641,8.04167,2459.1,2459.0,0.0202]
[1725212141548,3.97527,2459.1,2459.0,0.0202]
[1725212141846,7.68087,2459.1,2459.0,0.0202]
[1725212142041,0.40667,2459.1,2459.0,0.0202]
[1725212142239,0.40661,2459.5,2459.1,0.40666]
[1725212142442,0.4066,2459.5,2459.1,0.40667]
[1725212142841,0.00609496,2459.6,2459.0,0.0202]
[1725212143445,0.00609496,2459.6,2459.3,0.40663]
[1725212143642,0.00609496,2459.6,2459.4,0.7528]
[1725212144342,0.00609496,2459.6,2459.4,5.22501]
[1725212144541,0.00609496,2459.6,2459.5,4.4722]
[1725212144739,0.00609496,2459.6,2459.5,4.8276]
[1725212145845,0.00609496,2459.6,2459.5,4.421]
[1725212146340,0.00609496,2459.6,2459.4,0.7528]
[1725212146537,2.81609496,2459.6,2459.4,0.7528]
[1725212146738,3.22269496,2459.6,2459.4,0.7528]
[1725212147537,0.4066,2459.5,2459.1,0.3554]
[1725212147743,3.22268496,2459.6,2459.1,0.3554]
[1725212148649,3.22268496,2459.6,2459.1,0.76207]
[1725212148852,2.81609496,2459.6,2459.1,0.3554]
[1725212149150,0.40662,2459.4,2459.1,0.3554]
[1725212149849,3.61441,2459.5,2459.1,0.3554]
[1725212150038,0.40661,2459.5,2459.1,0.3554]
[1725212151046,3.22268496,2459.6,2459.1,0.3554]
[1725212151449,3.22268496,2459.6,2459.1,0.76206]
[1725212152338,0.4066,2459.5,2459.1,0.76206]
[1725212152655,2.81609496,2459.6,2459.1,0.76206]
[1725212152656,3.22268496,2459.6,2459.1,0.76206]
[1725212153649,0.4066,2459.5,2459.1,0.76206]
[1725212154151,2.81,2459.4,2459.0,3.228]
[1725212154345,0.40667,2459.1,2459.0,3.228]
[1725212156052,0.40667,2459.1,2459.0,0.0202]
[1725212156453,0.40667,2459.1,2459.0,3.228]
[1725212158643,3.21666,2459.2,2459.0,3.228]
[1725212158849,0.40664,2459.3,2459.0,3.228]
[1725212159146,0.00609496,2459.6,2459.0,3.228]
[1725212159458,0.41268496,2459.6,2459.2,0.40664]
[1725212160054,0.00609496,2459.6,2459.3,0.40663]
[1725212160260,0.00609496,2459.6,2459.4,1.1275]
[1725212160959,0.00609496,2459.6,2459.4,5.1931]
[1725212161161,0.00609496,2459.6,2459.4,0.75]
[1725212161564,0.00609496,2459.6,2459.5,0.4066]
[1725212161959,0.00609496,2459.6,2459.5,4.0656]
[1725212162159,0.00609496,2459.6,2459.4,0.75]
[1725212164458,0.00609496,2459.6,2459.4,4.8156]
[1725212164663,0.00609496,2459.6,2459.5,4.4722]
[1725212165451,2.81,2460.0,2459.5,10.4722]
[1725212165656,0.3581,2460.4,2459.5,2.81]
[1725212165657,2.81,2460.2,2459.5,2.81]
[1725212165954,0.40647,2460.4,2459.9,0.40653]
[1725212165955,3.21647,2460.4,2459.9,0.40653]
[1725212166151,2.81,2460.4,2460.0,1.53211]
[1725212166668,3.22255496,2460.4,2460.0,1.53211]
[1725212167066,2.81609496,2460.4,2460.1,0.4065]
[1725212167364,2.81609496,2460.4,2460.2,0.40649]
[1725212167866,0.00609496,2460.4,2460.2,0.40649]
[1725212168573,0.00609496,2460.4,2460.2,0.40647]
[1725212169453,0.00609496,2460.4,2460.3,0.40647]
[1725212170266,0.00609496,2460.4,2460.3,4.47127]
[1725212170867,0.00609496,2460.4,2460.1,3.62038496]
[1725212171067,0.00609496,2460.4,2460.2,0.40649]
[1725212171269,0.00609496,2460.4,2460.1,0.41258496]
[1725212171467,0.00609496,2460.4,2460.2,0.40648]
[1725212171868,0.00609496,2460.4,2460.1,0.00609496]
[1725212171869,0.00609496,2460.4,2460.3,0.40647]
[1725212172068,0.00609496,2460.4,2460.2,0.40648]
[1725212172763,0.00609496,2460.4,2460.1,0.00609496]
[1725212172973,0.00609496,2460.4,2460.2,0.40648]
[1725212173269,0.60439496,2460.5,2460.2,0.40648]
[1725212174073,1.01083496,2460.5,2460.1,0.41259496]
[1725212175270,0.00609496,2460.6,2460.3,0.40646]
[1725212177367,6.0178,2461.3,2460.5,3.2078]
[1725212177572,5.40870855,2462.0,2460.5,3.2078]
[1725212177573,0.4063,2461.4,2460.6,3.9064]
[1725212177863,6.0178,2461.3,2460.7,0.4064]
[1725212178072,0.40632,2461.2,2460.7,0.4064]
[1725212178263,0.40632,2461.2,2460.8,9.02664186]
[1725212178464,0.41241496,2461.2,2460.8,0.40638]
[1725212178872,0.00609496,2461.2,2460.9,0.40637]
[1725212180974,0.00609496,2461.2,2461.0,3.2078]
[1725212181180,0.00609496,2461.2,2461.1,0.7481]
[1725212181377,0.00609496,2461.2,2461.1,1.51634]
[1725212181568,0.00609496,2461.2,2461.1,5.1732]
[1725212181879,0.00609496,2461.2,2461.1,4.809]
[1725212182472,0.00609496,2461.2,2461.1,8.02534]
[1725212182673,0.19814433,2462.1,2461.7,0.40623]
[1725212182872,0.19814433,2462.1,2461.8,0.79012]
[1725212183076,0.19814433,2462.1,2461.9,0.3544]
[1725212183280,0.19814433,2462.1,2462.0,4.46779]
[1725212183475,3.2078,2462.3,2462.0,4.46779]
[1725212183476,0.3739,2462.6,2462.1,0.40617]
[1725212183674,3.57836,2462.8,2462.1,0.41226496]
[1725212183876,3.1723,2462.8,2462.1,0.00609496]
[1725212184080,3.2161,2462.6,2462.1,0.00609496]
[1725212184275,3.1723,2462.8,2462.1,0.00609496]
[1725212184577,3.2078,2462.9,2462.2,3.61395]
[1725212184785,3.2078,2462.9,2462.1,0.00609496]
[1725212184786,3.21607,2462.8,2462.1,0.41226496]
[1725212185582,3.21606,2462.8,2462.1,0.41226496]
[1725212186470,3.2078,2462.9,2462.2,0.40615]
[1725212186672,3.61384,2462.9,2462.2,3.61395]
[1725212186871,3.61384,2462.9,2462.1,0.00609496]
[1725212186872,3.2078,2462.9,2462.1,0.00609496]
[1725212187073,0.40601,2463.1,2462.4,0.40612]
[1725212187273,6.4238,2463.2,2462.5,1.1619]
[1725212187479,6.4238,2463.2,2462.5,12.50163928]
[1725212187480,3.2078,2463.2,2462.5,12.50163928]
[1725212187684,0.3731,2463.3,2462.7,0.40606]
[1725212188074,0.3731,2463.3,2462.8,0.40606]
[1725212188783,3.2078,2463.5,2462.8,3.2078]
[1725212188978,3.2078,2463.5,2462.9,0.40603]
[1725212188979,3.61374,2463.5,2462.9,0.40603]
[1725212189175,6.42374,2463.5,2462.9,0.40603]
[1725212189373,3.61374,2463.5,2462.9,0.40603]
[1725212189575,3.2078,2463.5,2462.9,0.40603]
[1725212189779,3.2078,2463.5,2463.0,0.40602]
[1725212190086,3.2078,2463.5,2463.0,0.81242]
[1725212190269,3.2078,2463.5,2463.1,0.78051]
[1725212190473,3.2078,2463.5,2463.2,0.3856]
[1725212193282,0.40597,2463.4,2463.1,3.5823]
[1725212194081,3.2078,2463.5,2463.1,3.2078]
[1725212194288,3.2078,2463.2,2462.6,0.3879]
[1725212194593,0.3555,2463.8,2462.4,3.2164]
[1725212194594,3.2078,2462.9,2462.4,2.81]
[1725212194890,0.40608,2462.7,2462.4,2.81]
[1725212195082,1.01503,2463.1,2462.4,2.81]
[1725212195476,0.40607,2462.8,2462.4,2.81]
[1725212195682,0.40608,2462.7,2462.5,8.48997129]
[1725212196189,0.40614,2462.4,2462.2,7.7857]
[1725212196389,0.40614,2462.4,2462.2,0.3879]
[1725212196589,0.40614,2462.3,2462.2,0.3879]
[1725212196786,0.40616,2462.2,2462.1,0.00609496]
[1725212198187,4.46776,2462.2,2462.1,0.00609496]
[1725212199389,4.46776,2462.2,2461.8,4.19]
[1725212199390,0.40621,2461.9,2461.8,4.19]
[1725212199581,0.40621,2461.9,2461.4,4.5605]
[1725212200299,0.41230496,2461.9,2461.4,4.56659496]
[1725212200679,0.40623,2461.8,2461.4,4.56659496]
[1725212200986,0.00609496,2461.9,2461.7,2.81]
[1725212201187,1.12998,2462.7,2461.8,3.5882]
[1725212201397,0.77578,2462.7,2462.2,2.81]
[1725212201693,3.2078,2462.6,2461.8,11.541401]
[1725212201993,3.2078,2462.6,2461.9,8.42797149]
[1725212201994,0.40618,2462.1,2461.9,8.42797149]
[1725212202196,0.40619,2462.0,2461.9,8.42797149]
[1725212202498,0.3697,2462.7,2461.5,6.0178]
[1725212202499,0.40624,2461.7,2461.5,3.2078]
[1725212202693,0.40623,2461.8,2461.5,3.2078]
[1725212202887,3.2078,2462.0,2461.4,0.37659496]
[1725212203195,0.40626,2461.6,2461.4,0.37659496]
[1725212203393,0.40625,2461.7,2461.4,0.37659496]
[1725212203593,0.40623,2461.8,2461.4,0.37659496]
[1725212203985,0.40621,2461.9,2461.4,0.37659496]
[1725212204183,0.3654,2462.1,2461.5,0.40627]
[1725212204396,0.4062,2462.0,2461.5,0.40627]
[1725212204986,0.3654,2462.1,2461.6,0.40624]
[1725212205182,0.40615,2462.3,2461.8,0.40622]
[1725212205386,6.3919,2462.4,2461.8,2.81]
[1725212205387,0.3741,2462.4,2461.8,2.81]
[1725212205596,3.5819,2462.4,2461.8,2.81]
[1725212205799,0.40619,2462.1,2461.5,3.21626]
[1725212205984,0.40619,2462.0,2461.5,3.21626]
[1725212206186,0.40619,2462.0,2461.5,11.90211989]
[1725212206397,0.40622,2461.9,2461.5,11.49585989]
[1725212206695,0.40622,2461.8,2461.5,2.81]
[1725212206896,3.2078,2462.1,2461.5,2.81]
[1725212207091,0.40626,2461.6,2461.4,0.37659496]
[1725212207394,0.40626,2461.6,2461.4,0.00609496]
[1725212207790,0.7361,2462.0,2461.4,0.00609496]
[1725212208095,0.40623,2461.8,2461.4,0.00609496]
[1725212208293,0.7361,2462.0,2461.5,3.21626]
[1725212208294,0.40619,2462.0,2461.5,3.21626]
[1725212208803,0.40621,2461.9,2461.5,2.81]
[1725212208991,0.40619,2462.0,2461.5,3.21627]
[1725212210092,0.7525,2462.4,2461.6,0.385]